Workbook

Sheet SQUADRA 8-10
A1: SEZ. | B1: GINNASTA | C1: DATA | D1: SOCIETA' | E1: TUMBL | F1: FLOOR | G1: TRAMP | H1: TOTALE | I1: CLASSIFICA
A2: GIOVANI L2
A3: 1 | B3: IACHI NOEMI | C3: 2003-09-16 | D3: SIGMA GYMNICA MONTEROSA | E3: 6.5 | F3: 9 | G3: 6.35 | H3: =E3+F3+G3 -> 21.85 | I3: =RANK(H3,H3:H3,0) -> 1
B4: MARCO GIULIA | C4: 2003-12-22
B5: ARVAT ALICE | C5: 2005-01-10
B6: BROCCO GAIA | C6: 2005-09-05
B7: BASTRENAZ FRANCESCA | C7: 2005-12-24
B8: BASTRENAZ GIADA | C8: 2006-12-05
B9: MARANGONI CHRISTELE | C9: 2006-05-01
B10: LEVI BIANCA | C10: 2006-09-01

Sheet SQUADRA 4-7
B1: SEZ. | C1: GINNASTA | D1: DATA | E1: SOCIETA' | F1: TUMBL | G1: FLOOR | H1: TRAMP | I1: TOTALE | J1: CLASSIFICA
B2: GIOVANI L1
B3: 1 | C3: SANTINATO MICHELLE | D3: 2007-12-04 | E3: SIGMA GYMNICA MONTEROSA | F3: 7.45 | G3: 10.5 | H3: 6.81 | I3: =F3+G3+H3 -> 24.76 | J3: =RANK(I3,I3:I15,0) -> 2
C4: CHODAKOWSKA NICOLE | D4: 2007-12-05
C5: VAIROS GIULIA | D5: 2007-02-01
C6: BORDET STEPHANIE | D6: 2006-03-11
C7: BERTUCCI ASIA | D7: 2007-10-30
B9: 2 | C9: PANFI GIULIA | D9: 2010-01-17 | E9: JUNUAMENTE SPORTIVA | F9: 8.35 | G9: 10.6 | H9: 7.71 | I9: =F9+G9+H9 -> 26.66 | J9: =RANK(I9,I3:I15,0) -> 1
C10: RIVANO ANNA | D10: 2009-04-02
C11: SACRFO' ELISA | D11: 2009-02-15
C12: FERTINI AURORA | D12: 2008-12-06
C13: D'ALESSANDRO VIKTORIA | D13: 2008-01-31
C14: LISCO DENISE | D14: 2007-03-20
C15: BEVEGNI ASIA | D15: 2007-10-01
B17: 1 | C17: CANNAS LUNA | D17: 2007-09-25 | E17: SIGMA GYMNICA MONTEROSA | F17: 6.6 | G17: 9.25 | H17: 8.25 | I17: =F17+G17+H17 -> 24.1 | J17: =RANK(I17,I17:I28,0) -> 2
C18: CHRISTILLE MARLENE | D18: 2007-02-04
C19: MAZZARELLO CARMELA | D19: 2007-09-26
C20: BLANC KRISTIAN | D20: 2007-03-28
C21: CURTAZ ARIANNA | D21: 2006-08-13
B23: 2 | C23: BERNASCONI AMBRA | D23: 2005-09-26 | E23: ARS SALTRIO | F23: 8.65 | G23: 11.25 | H23: 8.46 | I23: =F23+G23+H23 -> 28.36 | J23: =RANK(I23,I17:I28,0) -> 1
C24: DI BIASE ELEONORA | D24: 2007-05-19
C25: MAGGIONI MARTA | D25: 2005-10-18
C26: MAGGIONI PAOLO | D26: 2007-10-09
C27: RESSA ERIKA | D27: 2006-12-05
C28: MASCIADRI CLARA | D28: 2006-09-26
B29: GIOVANI L2
B30: 1 | C30: BROGLIA MARTINA | D30: 2009-03-30 | E30: SIGMA GYMNICA MONTEROSA | F30: 6.3 | G30: 10.4 | H30: 6.76 | I30: =F30+G30+H30 -> 23.46 | J30: =RANK(I30,I30:I41,0) -> 2
C31: ZUNINO ALICE | D31: 2008-08-11
C32: LINGERI ALICE | D32: 2007-06-16
C33: BRONETTI GIULIA | D33: 2008-01-14
C34: CRISTILLE ELODIE | D34: 2008-09-12
C35: CORSINI LIAM | D35: 2008-11-13
B37: 2 | C37: DODI ANGELO | D37: 2007-02-22 | E37: GINNASTICA SORBOLO | F37: 9.45 | G37: 10.35 | H37: 7.56 | I37: =F37+G37+H37 -> 27.36 | J37: =RANK(I37,I30:I41,0) -> 1
C38: ZAPPIA MARTA | D38: 2007-07-13
C39: SANTINI SOFIA | D39: 2007-09-16
C40: BOSI GIADA | D40: 2007-04-10
C41: ZEDDA IRENE | D41: 2008-09-23
B43: 1 | C43: CAVALLI GIUDITTA | D43: 2007-02-10 | E43: FLYER GYM | F43: 9.15 | G43: 10.45 | H43: 7.95 | I43: =F43+G43+H43 -> 27.55 | J43: =RANK(I43,I43:I53,0) -> 1
C44: FAGNANI SOFIA | D44: 2008-05-23
C45: MALVATI ELISA | D45: 2008-04-19
C46: MANONI ISABELLA | D46: 2007-07-11
C47: VANETTI GIUDITTA | D47: 2007-05-21
B49: 2 | C49: BARLETTA SERENA | D49: 2006-07-03 | E49: LIBERTAS FOSSANO | F49: 7.5 | G49: 10.85 | H49: 7.36 | I49: =F49+G49+H49 -> 25.71 | J49: =RANK(I49,I43:I53,0) -> 2
C50: BERGESIO VIRGINIA | D50: 2006-01-12
C51: LOCORI ANNA | D51: 2006-01-26
C52: MASSANGU EMANUELLE | D52: 2007-04-16
C53: SACCHI ANNALISA | D53: 2007-03-18
B54: JUNIOR L2
B55: 1 | C55: PIZZARDI GIORGIA | D55: 2003-10-27 | E55: FREE TIME | F55: 9.85 | G55: 11.05 | H55: 7.35 | I55: =F55+G55+H55 -> 28.25 | J55: =RANK(I55,I55:I64,0) -> 2
C56: GABELLI CATERINA | D56: 2003-06-08
C57: D'INTRONO VIRGINIA | D57: 2004-04-20
C58: LAMA CARLOTTA | D58: 2003-02-20
B60: 2 | C60: CARCANO FEDERICO | D60: 2004-10-07 | E60: FLYER GYM | F60: 10.25 | G60: 10.5 | H60: 8.51 | I60: =F60+G60+H60 -> 29.26 | J60: =RANK(I60,I55:I64,0) -> 1
C61: CHIGHINE GIULIA | D61: 2004-12-05
C62: COTTONARO MIRKO | D62: 2004-08-01
C63: EMANUELE ALESSIA | D63: 2005-02-19
C64: LEURATTI ANNA | D64: 2005-02-05

Sheet TRIO
A1: SEZ. | B1: GINNASTA | C1: DATA | D1: SOCIETA' | E1: TUMBL | F1: TRAMP | G1: TOTALE | H1: CLASSIFICA
A2: LIVELLO 1
A3: GIOVANI 1
A4: 1 | B4: MIRTO GIULIA | C4: 2010-03-13 | D4: JUNUAMENTE SPORTIVA | E4: 8.87 | F4: 8.2 | G4: =E4+F4 -> 17.07 | H4: =RANK(G4,G4:G4,0) -> 1
B5: SILVANO LUDOVICA | C5: 2010-01-01
B6: GEIROLA MARTINA | C6: 2009-02-08
A7: GIOVANI 2
A8: 1 | B8: PEDEMONTE GIULIA | C8: 2005-08-18 | D8: JUNUAMENTE SPORTIVA | E8: 8.05 | F8: 5.6 | G8: =E8+F8 -> 13.65 | H8: =RANK(G8,G8:G32,0) -> 5
B9: FILANTI GIULIA | C9: 2005-04-26
B10: GEIROLA CAROLA | C10: 2004-12-03
A12: 2 | B12: CONCONI VALENTINA | C12: 2007-06-28 | D12: FLYER GYM | E12: 8.02 | F12: 7.8 | G12: =E12+F12 -> 15.82 | H12: =RANK(G12,G8:G32,0) -> 2
B13: FRATTI MATILDE | C13: 2009-10-03
B14: ULERI MARTA | C14: 2005-11-29
B15: FERRO CHIARA | C15: 2009-07-18
A17: 3 | B17: BIANCO MARTINA | C17: 2008-05-07 | D17: FLYER GYM | E17: 8.42 | F17: 7.2 | G17: =E17+F17 -> 15.62 | H17: =RANK(G17,G8:G32,0) -> 3
B18: BORELLI MATILDE JOLANDA | C18: 2007-08-27
B19: PEVARELLO EMMA | C19: 2009-01-20
B20: CASALAZ ARIANNA | C20: 2007-02-10
B21: BOZZONI NICOLE | C21: 2007-08-04
A23: 4 | B23: BELLUCCIO SOFIA | C23: 2005-07-27 | D23: FLYER GYM | E23: 8.2 | F23: 8.1 | G23: =E23+F23 -> 16.3 | H23: =RANK(G23,G8:G32,0) -> 1
B24: GIRARDI ARIANNA | C24: 2005-02-14
B25: GIRARDI RACHELE | C25: 2005-02-14
B26: BAMBOZZI LAURA | C26: 2006-05-19
A28: 5 | B28: BELLATI SOFIA | C28: 2006-12-29 | D28: FLYER GYM | E28: 6.97 | F28: 7.8 | G28: =E28+F28 -> 14.77 | H28: =RANK(G28,G8:G32,0) -> 4
B29: CURSALE IRIS | C29: 2006-08-07
B30: CURSALE SARA | C30: 2006-12-15
B31: IORIO ALESSIA | C31: 2006-12-12
B32: ZANZI CATERINA | C32: 2006-05-16
A34: 1 | B34: SOUMAHORO MIRIAM | C34: 2006-02-21 | D34: FLYER GYM | E34: 8.67 | F34: 7.6 | G34: =E34+F34 -> 16.27 | H34: 2
B35: QUARGENTAM ALESSIO | C35: 2005-12-16
B36: ZIROLDI LARY | C36: 2006-12-23
B37: GUIDALI NOEMI | C37: 2006-07-06
B38: MERZOUK NADJAT | C38: 2006-02-10
A40: 2 | B40: AMBROSETTI MARGHERITA | C40: 2006-08-28 | D40: FLYER GYM | E40: 8.67 | F40: 7.6 | G40: =E40+F40 -> 16.27 | H40: =RANK(G40,G34:G50,0) -> 1
B41: MARTUCCI RICCARDO | C41: 2006-07-06
B42: SCALEIA AURORA | C42: 2007-08-28
B43: RENDA MARTINO | C43: 2008-04-19
B44: PALADINI MOLGORA MATTIA | C44: 2008-06-25
A46: 3 | B46: PICCINOTTI LAURA | C46: 2007-05-16 | D46: FLYER GYM | E46: 6.37 | F46: 7 | G46: =E46+F46 -> 13.37 | H46: =RANK(G46,G34:G50,0) -> 3
B47: PETRILLO PENELOPE | C47: 2007-07-12
B48: DELLA TORRE GIULIA | C48: 2006-12-14
B49: MONGELLI SILVIA | C49: 2006-11-21
B50: AVERNA MATTEO | C50: 2005-07-21
A51: SENIOR
A52: 1 | B52: CINTURA MATTIA | C52: 1999-11-03 | D52: FLYER GYM | E52: 8.2 | F52: 7 | G52: =E52+F52 -> 15.2 | H52: =RANK(G52,G52:G52,0) -> 1
B53: GHIRETTI MARCO | C53: 1998-02-03
B54: D'ANDREA GIADA | C54: 2000-10-22

Sheet COPPIE
A1: SEZ. | B1: GINNASTA | C1: DATA | D1: SOCIETA' | E1: TUMBL | F1: FLOOR | G1: TRAMP | H1: TOTALE | I1: CLASSIFICA
A2: GIOVANI 1 L1
A3: 1 | B3: SALOMONI SARA VANDA | C3: 2009-07-31 | D3: GINNASTICA CUMIANA | E3: 9.05 | F3: 11.1 | G3: 8.83 | H3: =E3+F3+G3 -> 28.98 | I3: =RANK(H3,H3:H8,0) -> 2
B4: TOPPINO VIOLA | C4: 2009-09-17
B5: GALBIATA GIORGIA | C5: 2010-05-06
A7: 2 | B7: CAVATORTI EMMA | C7: 2009-02-25 | D7: GINNASTICA SORBOLO | E7: 9.05 | F7: 11 | G7: 9.03 | H7: =E7+F7+G7 -> 29.08 | I7: =RANK(H7,H3:H8,0) -> 1
B8: OPPICI LAURA | C8: 2009-04-19
A9: GIOVANI 2 L1
A10: 1 | B10: DE MORO ALICE | C10: 2007-05-03 | D10: ASD KAIROS | E10: 9.2 | F10: 10.8 | G10: 8.63 | H10: =E10+F10+G10 -> 28.63 | I10: =RANK(H10,H10:H23,0) -> 2
B11: BUSCAGLIONE CHIARA | C11: 2006-03-29
A13: 2 | B13: LUCA MARTINA | C13: 2006-09-13 | D13: ASD KAIROS | E13: 8.75 | F13: 10.2 | G13: 8.33 | H13: =E13+F13+G13 -> 27.28 | I13: =RANK(H13,H10:H23,0) -> 4
B14: PLATANIA SILVIA | C14: 2007-03-10
A16: 3 | B16: NICASTRO CLARISSA | C16: 2008-02-02 | D16: ASD KAIROS | H16: =E16+F16+G16 -> 0 | I16: =RANK(H16,H10:H23) -> 5
B17: KULMYE ADNA | C17: 2007-12-12
A19: 4 | B19: MOTTINO CATERINA | C19: 2007-12-30 | D19: ASD KAIROS | E19: 8.5 | F19: 10.3 | G19: 8.83 | H19: =E19+F19+G19 -> 27.63 | I19: =RANK(H19,H10:H23,0) -> 3
B20: BENZIO GLORIA | C20: 2007-03-26
A22: 5 | B22: PETROSINO ELISA | C22: 2006-08-24 | D22: FREE TIME | E22: 9.7 | F22: 11.2 | G22: 8.83 | H22: =E22+F22+G22 -> 29.73 | I22: =RANK(H22,H10:H23,0) -> 1
B23: PIAZZA SOFIA | C23: 2006-02-23
A24: JUNIOR L1
A25: 1 | B25: BONETTI GIULIA | C25: 2003-12-21 | D25: FLYER GYM | E25: 8.05 | F25: 10.9 | G25: 8.23 | H25: =E25+F25+G25 -> 27.18 | I25: =RANK(H25,H25:H33,0) -> 3
B26: SCHILLACI YLENIA MARIA | C26: 2002-03-08
A28: 2 | B28: CATURANO SHARON | C28: 2004-07-04 | D28: FLYER GYM | E28: 8.6 | F28: 10.85 | G28: 8.53 | H28: =E28+F28+G28 -> 27.98 | I28: =RANK(H28,H25:H33,0) -> 2
B29: D'ANDREA MELISSA | C29: 2005-04-18
B30: VOICU ALESSANDRA | C30: 2004-05-03
A32: 3 | B32: CARLINO GIORGIA | C32: 2003-07-09 | D32: ARS SALTRIO | E32: 9.4 | F32: 10.65 | G32: 8.23 | H32: =E32+F32+G32 -> 28.28 | I32: =RANK(H32,H25:H33,0) -> 1
B33: DI BIASE AMANDA | C33: 2001-05-24
A37: GIOVANI 1 L2
A38: 1 | B38: BELLAVIA CHIARA | C38: 2008-12-05 | D38: LIBERTAS FOSSANO | E38: 9.525 | F38: 10.85 | G38: 8.6 | H38: =E38+F38+G38 -> 28.975 | I38: =RANK(H38,H38:H38,0) -> 1
B39: RINERO SOFIA | C39: 2008-11-19
A40: GIOVANI 2 L2
A41: 1 | B41: VACCA BEATRICE | C41: 2007-09-19 | D41: LIBERTAS FOSSANO | E41: 8.1 | F41: 11.3 | G41: 8.43 | H41: =E41+F41+G41 -> 27.83 | I41: =RANK(H41,H41:H41,0) -> 1
B42: PIANO GIULIA | C42: 2007-09-17
A43: JUNIOR L2
B44: MASCOLO SOFIA | C44: 2004-03-15 | D44: FLYER GYM | E44: 7.9 | F44: 10.6 | G44: 8.48 | H44: =E44+F44+G44 -> 26.98 | I44: =RANK(H44,H44:H49,0) -> 2
B45: IAPPELLI SERENA | C45: 2003-06-24
A47: 2 | B47: STEVIC SARA | C47: 2002-08-24 | D47: FLYER GYM | E47: 9.5 | F47: 11.15 | G47: 8.43 | H47: =E47+F47+G47 -> 29.08 | I47: =RANK(H47,H44:H49,0) -> 1
B48: BOTTELLI ANITA | C48: 2002-09-15
B49: VARALLI SARA | C49: 2003-06-30
A50: SENIOR L2
A51: 1 | B51: CRIMI CHIARA | C51: 2001-10-05 | D51: FLYER GYM | E51: 7.125 | F51: 10.05 | G51: 8.7 | H51: =E51+F51+G51 -> 25.875 | I51: =RANK(H51,H51:H60,0) -> 3
B52: CARCANO GLORIA | C52: 2002-07-09
B53: GIGLIOTTI LORENZO | C53: 2000-03-06
A55: 2 | B55: CONCONI ELENA | C55: 2002-05-10 | D55: FLYER GYM | E55: 9.575 | F55: 11.65 | G55: 8.65 | H55: =E55+F55+G55 -> 29.875 | I55: =RANK(H55,H51:H60,0) -> 1
B56: MOZZANICA SOFIA MELISSA | C56: 2000-05-12
B57: CONCONI ILARIA | C57: 2000-07-02
A59: 3 | B59: BARONI BEATRICE | C59: 2000-04-28 | D59: FLYER GYM | E59: 8.725 | F59: 11.65 | G59: 8.46 | H59: =E59+F59+G59 -> 28.835 | I59: =RANK(H59,H51:H60,0) -> 2
B60: GALLO STAMPINO BEATRICE | C60: 2004-01-08

Sheet INDIVIDUALI
A1: SEZ. | B1: GINNASTA | C1: DATA | D1: SOCIETA' | E1: FLOOR | F1: TUMBL | G1: FLOOR | H1: TRAMP | I1: TOTALE | J1: CLASSIFICA
A2: LIVELLO 1
A3: GIOVANI 1 L1
A4: 1 | B4: LARINI CELESTE | C4: 2008-10-13 | D4: GINNASTICA SORBOLO | F4: 9.6 | G4: 10.2 | H4: 9.71 | I4: =F4+G4+H4 -> 29.51 | J4: =RANK(I4,I4:I16,0) -> 1
A5: 2 | B5: ARAMINI BORRA SIDONIE | C5: 2009-06-03 | D5: SIGMA GYMNICA | F5: 9.6 | G5: 10 | H5: 9.35 | I5: =F5+G5+H5 -> 28.95 | J5: =RANK(I5,I4:I16,0) -> 2
A6: 3 | B6: CASTAGNETTI ALICE | C6: 2008-02-11 | D6: ASD ATLETIC | F6: 9.55 | G6: 10.15 | H6: 9.08 | I6: =F6+G6+H6 -> 28.78 | J6: =RANK(I6,I4:I16,0) -> 3
A7: 4 | B7: COMELLI GAIA | C7: 2009-01-08 | D7: GINNASTICA SORBOLO | F7: 9.4 | G7: 9.65 | H7: 9.61 | I7: =F7+G7+H7 -> 28.66 | J7: =RANK(I7,I4:I16,0) -> 4
A8: 5 | B8: FERRARI RACHELE | C8: 2009-10-19 | D8: GINNASTICA SORBOLO | F8: 9.45 | G8: 9.6 | H8: 9.51 | I8: =F8+G8+H8 -> 28.56 | J8: =RANK(I8,I4:I16,0) -> 5
A9: 6 | B9: COSTABLOZ GIORGIA | C9: 2009-07-16 | D9: SIGMA GYMNICA | F9: 9.5 | G9: 9.95 | H9: 9.06 | I9: =F9+G9+H9 -> 28.51 | J9: =RANK(I9,I4:I16,0) -> 6
A10: 7 | B10: JACCOND CRHISTELE | C10: 2009-04-25 | D10: SIGMA GYMNICA | F10: 9.5 | G10: 9.95 | H10: 9.05 | I10: =F10+G10+H10 -> 28.5 | J10: =RANK(I10,I4:I16,0) -> 7
A11: 8 | B11: ZANINI ELISABETTA | C11: 2009-12-10 | D11: SIGMA GYMNICA | F11: 9.55 | G11: 9.2 | H11: 9.46 | I11: =F11+G11+H11 -> 28.21 | J11: =RANK(I11,I4:I16,0) -> 8
A12: 9 | B12: MATTIODA AMELIE | C12: 2009-06-13 | D12: SIGMA GYMNICA | F12: 9.4 | G12: 9.1 | H12: 9.35 | I12: =F12+G12+H12 -> 27.85 | J12: =RANK(I12,I4:I16,0) -> 9
A13: 10 | B13: FILANTI CAMILLA | C13: 2009-05-21 | D13: JUNUAMENTE SPORTIVA | F13: 9.2 | G13: 8.8 | H13: 9.41 | I13: =F13+G13+H13 -> 27.41 | J13: =RANK(I13,I4:I16,0) -> 10
A14: 11 | B14: AVERNA GAIA | C14: 2010-02-24 | D14: FLYER GYM | F14: 8.8 | G14: 9.05 | H14: 8.95 | I14: =F14+G14+H14 -> 26.8 | J14: =RANK(I14,I4:I16,0) -> 11
A15: 12 | B15: ROSSI MARTINA | C15: 2010-03-24 | D15: FLYER GYM | F15: 8.25 | G15: 8.95 | H15: 9.05 | I15: =F15+G15+H15 -> 26.25 | J15: =RANK(I15,I4:I16,0) -> 12
A16: 13 | B16: BIGLIARDI VITTORIA | C16: 2008-02-08 | D16: ASD ATLETIC | I16: =F16+G16+H16 -> 0 | J16: =RANK(I16,I4:I16,0) -> 13
A18: 1 | B18: ARES ZEQQUIRI | C18: 2010-04-20 | D18: SORBOLO | F18: 9.45 | G18: 10 | H18: 9.21 | I18: =F18+G18+H18 -> 28.66 | J18: =RANK(I18,I17:I18,0) -> 1
A19: 2 | B19: ZOPPORONZERO MATTEO | C19: 2008-01-22 | D19: SIGMA GYMNICA | F19: 9.4 | G19: 9.9 | H19: 9.26 | I19: =F19+G19+H19 -> 28.56 | J19: =RANK(I19,I19:I20,0) -> 1
A20: GIOVANI 2 L1
A21: 1 | B21: VIOLI GIULIA | C21: 2007-12-26 | D21: GINNASTICA SORBOLO | F21: 9.6 | G21: 9.75 | H21: 9.51 | I21: =F21+G21+H21 -> 28.86 | J21: =RANK(I21,I21:I40,0) -> 16
A22: 2 | B22: TERIO GIULIA | C22: 2007-04-24 | D22: GINNASTICA SORBOLO | F22: 9.65 | G22: 9.95 | H22: 9.51 | I22: =F22+G22+H22 -> 29.11 | J22: =RANK(I22,I21:I40,0) -> 11
A23: 3 | B23: ZOBOLI GIULIA | C23: 2007-11-26 | D23: ASD ATLETIC | F23: 9.65 | G23: 10.55 | H23: 9.26 | I23: =F23+G23+H23 -> 29.46 | J23: =RANK(I23,I21:I40,0) -> 6
A24: 4 | B24: LISONI MICOL | C24: 2007-07-16 | D24: GINNASTICA SORBOLO | F24: 9.6 | G24: 10.3 | H24: 9.61 | I24: =F24+G24+H24 -> 29.51 | J24: =RANK(I24,I21:I40,0) -> 5
A25: 5 | B25: CHIELLINO MARTINA | C25: 2007-10-10 | D25: ASD ATLETIC | F25: 9.65 | G25: 10.75 | H25: 9.36 | I25: =F25+G25+H25 -> 29.76 | J25: =RANK(I25,I21:I40,0) -> 2
A26: 7 | B26: DI NUZZO GIULIA | C26: 2005-08-13 | D26: ASD ATLETIC | F26: 9.55 | G26: 10.45 | H26: 9.06 | I26: =F26+G26+H26 -> 29.06 | J26: =RANK(I26,I21:I40,0) -> 12
A27: 8 | B27: LARINI GIOIA | C27: 2007-07-06 | D27: GINNASTICA SORBOLO | F27: 9.5 | G27: 9.9 | H27: 9.61 | I27: =F27+G27+H27 -> 29.01 | J27: =RANK(I27,I21:I40,0) -> 15
A28: 9 | B28: LAMBRUSCHI KAREN | C28: 2007-01-21 | D28: ASD ATLETIC | F28: 9.6 | G28: 10.8 | H28: 9.26 | I28: =F28+G28+H28 -> 29.66 | J28: =RANK(I28,I21:I40,0) -> 3
A29: 10 | B29: DAVOLI IRENE | C29: 2005-09-26 | D29: ASD ATLETIC | F29: 9.65 | G29: 10.7 | H29: 9.56 | I29: =F29+G29+H29 -> 29.91 | J29: =RANK(I29,I21:I40,0) -> 1
A30: 11 | B30: BARBIERI VANESSA | C30: 2007-12-28 | D30: GINNASTICA SORBOLO | F30: 9.5 | G30: 9.5 | H30: 9.31 | I30: =F30+G30+H30 -> 28.31 | J30: =RANK(I30,I21:I40,0) -> 20
A31: 12 | B31: DINELLI DIANA | C31: 2007-07-11 | D31: ASD ATLETIC | F31: 9.5 | G31: 10 | H31: 9.15 | I31: =F31+G31+H31 -> 28.65 | J31: =RANK(I31,I21:I40,0) -> 17
A32: 13 | B32: MALERBA BENEDETTA | C32: 2006-11-29 | D32: ASD ATLETIC | F32: 9.7 | G32: 10.45 | H32: 9.46 | I32: =F32+G32+H32 -> 29.61 | J32: =RANK(I32,I21:I40,0) -> 4
A33: 14 | B33: PARRELLA SERENA | C33: 2007-04-09 | D33: ASD ATLETIC | F33: 9.5 | G33: 10.6 | H33: 9.16 | I33: =F33+G33+H33 -> 29.26 | J33: =RANK(I33,I21:I40,0) -> 8
A34: 15 | B34: SPEZZANI BENEDETTA | C34: 2007-01-08 | D34: ASD ATLETIC | F34: 9.5 | G34: 10.2 | H34: 9.46 | I34: =F34+G34+H34 -> 29.16 | J34: =RANK(I34,I21:I40,0) -> 10
A35: 16 | B35: ROZZI SERENA | C35: 2007-08-26 | D35: ASD ATLETIC | F35: 9.45 | G35: 10.25 | H35: 9.36 | I35: =F35+G35+H35 -> 29.06 | J35: =RANK(I35,I21:I40,0) -> 13
A36: 17 | B36: LONGO GINEVRA MARIA BERENICE | C36: 2006-09-15 | D36: ASD ATLETIC | F36: 9.75 | G36: 10.05 | H36: 9.25 | I36: 29.05 | J36: =RANK(I36,I21:I40,0) -> 14
A37: 18 | B37: TIBELLO BENEDETTA MARIA | C37: 2007-07-10 | D37: ASD ATLETIC | F37: 9.6 | G37: 10.5 | H37: 9.26 | I37: 29.36 | J37: =RANK(I37,I21:I40,0) -> 7
A38: 20 | B38: BERTONCIN SOFIA | C38: 2005-12-15 | D38: SIGMA GYMNICA | F38: 9.6 | G38: 9.8 | H38: 9.15 | I38: 28.55 | J38: =RANK(I38,I21:I40,0) -> 19
A39: 21 | B39: LEPORE VALENTINA | C39: 2005-01-14 | D39: SIGMA GYMNICA | F39: 9.6 | G39: 9.6 | H39: 9.45 | I39: 28.65 | J39: =RANK(I39,I21:I40,0) -> 17
A40: 22 | B40: COLI GINEVRA | C40: 2005-05-17 | D40: SIGMA GYMNICA | F40: 9.6 | G40: 10.25 | H40: 9.36 | I40: 29.21 | J40: =RANK(I40,I21:I40,0) -> 9
A42: 1 | B42: ORSINI FILIPPO | C42: 2006-07-02 | D42: GINNASTICA SORBOLO | F42: 9.3 | G42: 9.3 | H42: 9.51 | I42: 28.11 | J42: =RANK(I42,I42:I42,0) -> 1
A43: JUNIOR L1
A44: 6 | B44: CROTTI CARLOTTA | C44: 2004-09-20 | D44: ASD ATLETIC | F44: 9.6 | G44: 10.35 | H44: 9.36 | I44: =F44+G44+H44 -> 29.31 | J44: =RANK(I44,I42:I45,0) -> 1
A45: 1 | B45: BUSCI ANNALISA | C45: 2004-06-10 | D45: ASD ATLETIC | F45: 9.6 | G45: 10.3 | H45: 9.03 | I45: =F45+G45+H45 -> 28.93 | J45: 2
B46: BARBARO SAMANTHA | C46: 2004-06-21 | D46: GINNASTICA SORBOLO | F46: 9.65 | G46: 9.85 | H46: 9.41 | I46: =F46+G46+H46 -> 28.91 | J46: 3
A47: 3 | B47: LEONE SARA | C47: 2004-07-28 | D47: SIGMA GYMNICA | F47: 9.45 | G47: 10.15 | H47: 9.26 | I47: =F47+G47+H47 -> 28.86 | J47: =RANK(I47,I44:I47,0) -> 4
A48: GIOVANI 1 L2
A49: 1 | B49: PELAGATTI FEDERICA | C49: 2008-02-19 | D49: GINNASTICA SORBOLO | F49: 9.75 | G49: 10.6 | H49: 9.06 | I49: =F49+G49+H49 -> 29.41 | J49: =RANK(I49,I49:I49,0) -> 1
A50: GIOVANI 2 L2
A51: 1 | B51: CAPELLI SARA | C51: 2005-01-19 | D51: ASD ATLETIC | F51: 9.825 | G51: 11.05 | H51: 8.95 | I51: =F51+G51+H51 -> 29.825 | J51: =RANK(I51,I50:I51,0) -> 1
A52: 2 | B52: GILARDI LARA | C52: 2007-06-10 | D52: JUNUAMENTE SPORTIVA | F52: 9.85 | G52: 9.4 | H52: 9.21 | I52: =F52+G52+H52 -> 28.46 | J52: =RANK(I52,I52:I53,0) -> 1
A53: JUNIOR L2
A54: 1 | B54: BASTIANELLO BEATRICE | C54: 2002-05-13 | D54: FLYER GYM | F54: 10.075 | G54: 10.95 | H54: 9.73 | I54: =F54+G54+H54 -> 30.755 | J54: =RANK(I54,I51:I54,0) -> 1
A55: 2 | B55: MARCHIANI SARA | C55: 2002-03-29 | D55: FREE TIME | F55: 9.8 | G55: 10.8 | H55: 9.33 | I55: =F55+G55+H55 -> 29.93 | J55: =RANK(I55,I53:I56,0) -> 2
A56: 3 | B56: FERRETTI VALENTINA | C56: 2002-12-03 | D56: ASD ATLETIC | F56: 9.7 | G56: 10.65 | H56: 8.75 | I56: =F56+G56+H56 -> 29.1 | J56: =RANK(I56,I56:I59,0) -> 2
A57: 4 | B57: FABBRI ELENA | C57: 2003-03-20 | D57: FREE TIME | I57: =F57+G57+H57 -> 0 | J57: =RANK(I57,I56:I59,0) -> 3
B58: SENIOR L2
A59: 1 | B59: MAGRO CHIARA | C59: 2000-11-24 | D59: FLYER GYM | F59: 9.65 | G59: 10.65 | H59: 9.48 | I59: =F59+G59+H59 -> 29.78 | J59: =RANK(I59,I57:I59,0) -> 1
A60: 3 | B60: MAGRO PAOLA | C60: 2000-11-24 | D60: FLYER GYM | F60: 9 | G60: 11.25 | H60: 9.48 | I60: =F60+G60+H60 -> 29.73 | J60: =RANK(I60,I59:I61,0) -> 2
A61: 4 | B61: CERRUTTI ILARIA | C61: 2000-09-28 | D61: SIGMA GYMNICA | F61: 8.175 | G61: 9.75 | H61: 9.41 | I61: =F61+G61+H61 -> 27.335 | J61: =RANK(I61,I61:I63,0) -> 1

Sheet CRITERIUM
A1: SEZ. | B1: GINNASTA | C1: DATA | D1: SOCIETA' | E1: TUMBL | F1: FLOOR | G1: TRAMP | H1: TOTALE | I1: CLASSIFICA
A2: LIVELLO 1
A3: 1 | B3: MURA BIANCA | C3: 2011-03-20 | D3: GINNASTICA CUMIANA | H3: =E3+F3+G3 -> 0 | I3: =RANK(H3,H3:H35,0) -> 1
A4: 2 | B4: LAURIA NICCOLO' | C4: 2011-01-18 | D4: GINNASTICA CUMIANA | H4: 0 | I4: =RANK(H4,H4:H36,0) -> 1
A5: 3 | B5: MO SOFIA | C5: 2011-01-24 | D5: GINNASTICA CUMIANA | H5: 0 | I5: 1
A6: 4 | B6: ACTIS MATILDE | C6: 2010-06-03 | D6: GINNASTICA CUMIANA | H6: 0 | I6: 1
A7: 5 | B7: BRERO ANDREA | C7: 2010-07-27 | D7: GINNASTICA CUMIANA | H7: 0 | I7: 1
A8: 6 | B8: GERBELLE RUBEN | C8: 2010-08-08 | D8: GINNASTICA CUMIANA | H8: 0 | I8: 1
A9: 7 | B9: ANGELLA JACINTA SIRE | C9: 2011-05-24 | D9: FLYER | H9: 0 | I9: 1
A10: 8 | B10: CASTIGLIONI MARIA VALENTINA | C10: 2011-11-26 | D10: FLYER | H10: 0 | I10: 1
A11: 9 | B11: COLOMBO ANNA | C11: 2010-11-26 | D11: FLYER | H11: 0 | I11: 1
A12: 10 | B12: CROCE ELENA | C12: 2011-12-09 | D12: FLYER | H12: 0 | I12: 1
A13: 11 | B13: DEMONTIS MATTEO | C13: 2012-01-29 | D13: FLYER | H13: 0 | I13: 1
A14: 12 | B14: ERMOLI AMBRAMARIE | C14: 2012-04-23 | D14: FLYER | H14: 0 | I14: 1
A15: 13 | B15: ERMOLI DIEGO ALBERTO | C15: 2010-12-29 | D15: FLYER | H15: 0 | I15: 1
A16: 14 | B16: FERRETTI RICCARDO | C16: 2010-07-02 | D16: FLYER | H16: 0 | I16: 1
A17: 15 | B17: FRANZI FRANCESCA | C17: 2010-10-18 | D17: FLYER | H17: 0 | I17: 1
A18: 16 | B18: MACCHI GIORGIA | C18: 2012-07-29 | D18: FLYER | H18: 0 | I18: 1
A19: 17 | B19: RENDON MERCHAN DIANETH | C19: 2011-11-03 | D19: FLYER | H19: 0 | I19: 1
A20: 18 | B20: DI BENEDETTO GIULIO | C20: 2011-02-20 | D20: FLYER | H20: 0 | I20: 1
A21: 19 | B21: FACCO ANDREA | C21: 2012-04-05 | D21: FLYER | H21: 0 | I21: 1
A22: 20 | B22: TORRETTA GIONA | C22: 2011-09-29 | D22: FLYER | H22: 0 | I22: 1
A23: 21 | B23: AVERNA GIULIO | C23: 2012-12-09 | D23: FLYER | H23: 0 | I23: 1
A24: 22 | B24: MONTICELLI DAVIDE | C24: 2011-05-23 | D24: FLYER | H24: 0 | I24: 1
A25: 23 | B25: GIULIA BARICCHI | C25: 2011-02-04 | D25: SORBOLO | H25: 0 | I25: 1
A26: 24 | B26: ZANZI ANITA | D26: FLYER | H26: 0 | I26: 1
A27: 25 | B27: ACAMPORA DIEGO | C27: 2012-05-02 | D27: JUNUA-MENTE | H27: 0 | I27: 1
A28: 26 | B28: DAGNINO SIMONA | C28: 2012-06-22 | D28: JUNUA-MENTE | H28: 0 | I28: 1
A29: 27 | B29: FOSSATI ALICE | C29: 2011-01-28 | D29: JUNUA-MENTE | H29: 0 | I29: =RANK(H29,H29:H61,0) -> 1
A30: 28 | B30: BEVEGNI LUNA | C30: 2009-11-17 | D30: JUNUA-MENTE | H30: 0 | I30: =RANK(H30,H30:H62,0) -> 1
